[Event "*** Titled Tuesday Blitz"]
[Site "Chess.com"]
[Date "2021.04.27"]
[Round "1"]
[White "A-S-00"]
[Black "Vice64"]
[Result "0-1"]
[WhiteElo "2329"]
[BlackElo "2661"]
[TimeControl "180+1"]
[EndTime "10:06:52 PDT"]
[Termination "Vice64 won by resignation"]

1. d4 {[%clk 0:02:58.6]} 1... Nf6 {[%clk 0:02:59.6]} 2. c4 {[%clk 0:02:56.3]}
2... e6 {[%clk 0:02:59.9]} 3. Nc3 {[%clk 0:02:55]} 3... Bb4 {[%clk 0:02:59.5]}
4. Qc2 {[%clk 0:02:50.8]} 4... Nc6 {[%clk 0:02:58.1]} 5. e3 {[%clk 0:02:47.4]}
5... O-O {[%clk 0:02:55.6]} 6. Bd3 {[%clk 0:02:46.7]} 6... d6 {[%clk 0:02:55.5]}
7. Ne2 {[%clk 0:02:46.6]} 7... e5 {[%clk 0:02:53.6]} 8. O-O {[%clk 0:02:44]}
8... Bxc3 {[%clk 0:02:52.1]} 9. bxc3 {[%clk 0:02:39.8]} 9... Re8 {[%clk
0:02:44.9]} 10. e4 {[%clk 0:02:32.3]} 10... Bg4 {[%clk 0:02:34.5]} 11. f3 {[%clk
0:02:30.9]} 11... Bh5 {[%clk 0:02:29.1]} 12. Rb1 {[%clk 0:02:24.4]} 12... Rb8
{[%clk 0:02:26]} 13. Be3 {[%clk 0:02:11]} 13... b6 {[%clk 0:02:21.3]} 14. Ng3
{[%clk 0:01:14.4]} 14... Bg6 {[%clk 0:02:20.6]} 15. f4 {[%clk 0:01:12.4]} 15...
Ng4 {[%clk 0:02:05]} 16. Bc1 {[%clk 0:00:56.1]} 16... Qh4 {[%clk 0:02:03.6]} 17.
h3 {[%clk 0:00:42.8]} 17... Qxg3 {[%clk 0:01:42.2]} 18. hxg4 {[%clk 0:00:40.6]}
18... exf4 {[%clk 0:01:41.6]} 19. Rxf4 {[%clk 0:00:25.6]} 19... Re7 {[%clk
0:01:33.5]} 20. Bd2 {[%clk 0:00:21.9]} 20... Nd8 {[%clk 0:01:21.2]} 21. Rbf1
{[%clk 0:00:17.7]} 21... Ne6 {[%clk 0:01:20.9]} 22. Be1 {[%clk 0:00:17.3]} 22...
Qe3+ {[%clk 0:01:05]} 23. R4f2 {[%clk 0:00:16.8]} 23... Qg5 {[%clk 0:00:59.7]}
24. Qe2 {[%clk 0:00:11.8]} 24... h6 {[%clk 0:00:57.5]} 25. Bd2 {[%clk 0:00:12]}
25... Qh4 {[%clk 0:00:57.5]} 26. Be1 {[%clk 0:00:09.5]} 26... Qg5 {[%clk
0:00:52.1]} 27. Bd2 {[%clk 0:00:09.9]} 27... Qa5 {[%clk 0:00:51.9]} 28. Be1
{[%clk 0:00:07.1]} 28... Rbe8 {[%clk 0:00:50.2]} 29. Qf3 {[%clk 0:00:07.1]}
29... Ng5 {[%clk 0:00:49.3]} 30. Qg3 {[%clk 0:00:06.6]} 30... Bxe4 {[%clk
0:00:47.4]} 31. Be2 {[%clk 0:00:04.3]} 31... Bg6 {[%clk 0:00:44.5]} 32. Bd2
{[%clk 0:00:02.8]} 32... Ne4 {[%clk 0:00:43.9]} 33. Qf4 {[%clk 0:00:01.9]} 33...
Nxf2 {[%clk 0:00:41.9]} 34. Rxf2 {[%clk 0:00:02.5]} 34... Rxe2 {[%clk
0:00:41.9]} 0-1

[Event "*** Titled Tuesday Blitz"]
[Site "Chess.com"]
[Date "2021.04.27"]
[Round "1"]
[White "JoseRemolar"]
[Black "platy3"]
[Result "0-1"]
[WhiteElo "2437"]
[BlackElo "2849"]
[TimeControl "180+1"]
[EndTime "10:06:55 PDT"]
[Termination "platy3 won by resignation"]

1. d4 {[%clk 0:03:00.5]} 1... Nf6 {[%clk 0:02:57.7]} 2. c4 {[%clk 0:03:00.7]}
2... e6 {[%clk 0:02:57.5]} 3. Nf3 {[%clk 0:03:01]} 3... d5 {[%clk 0:02:57.4]} 4.
Nc3 {[%clk 0:03:00.2]} 4... dxc4 {[%clk 0:02:55.6]} 5. e4 {[%clk 0:02:52.2]}
5... b5 {[%clk 0:02:49.2]} 6. e5 {[%clk 0:02:45.6]} 6... Nd5 {[%clk 0:02:49]} 7.
Nxb5 {[%clk 0:02:45.1]} 7... Nb6 {[%clk 0:02:49.3]} 8. Be2 {[%clk 0:02:43]} 8...
Be7 {[%clk 0:02:48.7]} 9. O-O {[%clk 0:02:42]} 9... Nc6 {[%clk 0:02:47.1]} 10.
Be3 {[%clk 0:02:37.1]} 10... O-O {[%clk 0:02:46.5]} 11. Rc1 {[%clk 0:02:35.2]}
11... Rb8 {[%clk 0:02:33.3]} 12. Qc2 {[%clk 0:02:09.9]} 12... Ba6 {[%clk
0:02:23.9]} 13. Na3 {[%clk 0:02:00.5]} 13... Bxa3 {[%clk 0:01:43.6]} 14. bxa3
{[%clk 0:02:01.4]} 14... h6 {[%clk 0:01:43.5]} 15. Rfd1 {[%clk 0:01:58.3]} 15...
Ne7 {[%clk 0:01:38.7]} 16. Nd2 {[%clk 0:01:37.2]} 16... Nf5 {[%clk 0:01:26.1]}
17. Nxc4 {[%clk 0:01:35.1]} 17... Nd5 {[%clk 0:01:26.1]} 18. Qd2 {[%clk
0:01:07.3]} 18... Qh4 {[%clk 0:01:16.5]} 19. Na5 {[%clk 0:01:02.5]} 19... Bxe2
{[%clk 0:01:14.6]} 20. Qxe2 {[%clk 0:01:03.4]} 20... Qe4 {[%clk 0:01:08.2]} 21.
Qd3 {[%clk 0:00:58.7]} 21... Qg4 {[%clk 0:01:04.7]} 22. h3 {[%clk 0:00:57.8]}
22... Qg6 {[%clk 0:00:58.9]} 23. Nc6 {[%clk 0:00:53.1]} 23... Rb2 {[%clk
0:00:57.3]} 24. Rd2 {[%clk 0:00:47]} 24... Rxd2 {[%clk 0:00:48.1]} 25. Bxd2
{[%clk 0:00:44.7]} 25... a6 {[%clk 0:00:45.2]} 26. Nb4 {[%clk 0:00:44.1]} 26...
Nxb4 {[%clk 0:00:40.4]} 27. Bxb4 {[%clk 0:00:44]} 27... Rd8 {[%clk 0:00:39.5]}
28. Bc5 {[%clk 0:00:39.4]} 28... Qg5 {[%clk 0:00:38.6]} 29. Re1 {[%clk
0:00:37.8]} 29... Nh4 {[%clk 0:00:36.8]} 30. Qg3 {[%clk 0:00:37.5]} 30... Qd2
{[%clk 0:00:34]} 31. Qe3 {[%clk 0:00:21.3]} 31... Qxa2 {[%clk 0:00:30.1]} 32.
Be7 {[%clk 0:00:20.6]} 32... Nf5 {[%clk 0:00:30]} 33. Bxd8 {[%clk 0:00:17]}
33... Nxe3 {[%clk 0:00:29.9]} 34. fxe3 {[%clk 0:00:17.7]} 34... Qxa3 {[%clk
0:00:28.7]} 35. Kf2 {[%clk 0:00:16.8]} 35... Qc3 {[%clk 0:00:25.5]} 36. Rb1
{[%clk 0:00:14.9]} 36... Qc2+ {[%clk 0:00:24.4]} 0-1

[Event "*** Titled Tuesday Blitz"]
[Site "Chess.com"]
[Date "2021.04.27"]
[Round "1"]
[White "Karttunen"]
[Black "MuhittinBuker"]
[Result "1-0"]
[WhiteElo "2521"]
[BlackElo "2163"]
[TimeControl "180+1"]
[EndTime "10:06:57 PDT"]
[Termination "Karttunen won by resignation"]

1. e4 {[%clk 0:02:58.8]} 1... e5 {[%clk 0:02:50.9]} 2. Nf3 {[%clk 0:02:57.6]}
2... Nc6 {[%clk 0:02:47.7]} 3. Bb5 {[%clk 0:02:56.7]} 3... a6 {[%clk 0:02:46.7]}
4. Ba4 {[%clk 0:02:55.9]} 4... Nf6 {[%clk 0:02:43.9]} 5. O-O {[%clk 0:02:54]}
5... Be7 {[%clk 0:02:43.4]} 6. Re1 {[%clk 0:02:52.5]} 6... b5 {[%clk 0:02:20.7]}
7. Bb3 {[%clk 0:02:49.8]} 7... O-O {[%clk 0:02:17.3]} 8. c3 {[%clk 0:02:43.3]}
8... d5 {[%clk 0:01:22.5]} 9. exd5 {[%clk 0:02:41.5]} 9... Nxd5 {[%clk
0:01:21.5]} 10. Nxe5 {[%clk 0:02:40.6]} 10... Nxe5 {[%clk 0:01:21.4]} 11. Rxe5
{[%clk 0:02:40.4]} 11... c6 {[%clk 0:01:20.9]} 12. d3 {[%clk 0:02:35.7]} 12...
Bd6 {[%clk 0:01:20.9]} 13. Re1 {[%clk 0:02:32.5]} 13... Ra7 {[%clk 0:01:20.5]}
14. Nd2 {[%clk 0:02:21.6]} 14... Re7 {[%clk 0:01:20.4]} 15. Ne4 {[%clk
0:02:09.8]} 15... Bb8 {[%clk 0:01:18.6]} 16. Bg5 {[%clk 0:01:59.7]} 16... f6
{[%clk 0:01:15.5]} 17. Bh4 {[%clk 0:01:57.8]} 17... Rfe8 {[%clk 0:01:14.7]} 18.
Rf1 {[%clk 0:01:20.3]} 18... Bf5 {[%clk 0:01:12.1]} 19. f3 {[%clk 0:01:06.1]}
19... Kh8 {[%clk 0:01:10.5]} 20. Bf2 {[%clk 0:01:03.2]} 20... Qc7 {[%clk
0:01:06.3]} 21. g3 {[%clk 0:00:33.9]} 21... Bg6 {[%clk 0:00:59.8]} 22. c4 {[%clk
0:00:25.2]} 22... Nb6 {[%clk 0:00:40.8]} 23. Rc1 {[%clk 0:00:23]} 23... f5
{[%clk 0:00:32.9]} 24. Nc5 {[%clk 0:00:21.8]} 24... b4 {[%clk 0:00:23.9]} 25.
Nxa6 {[%clk 0:00:20.8]} 25... Qb7 {[%clk 0:00:20.6]} 26. Nxb8 {[%clk 0:00:21.1]}
26... Qxb8 {[%clk 0:00:20.6]} 27. d4 {[%clk 0:00:21.5]} 27... Nd7 {[%clk
0:00:18.4]} 28. Qd2 {[%clk 0:00:20]} 28... f4 {[%clk 0:00:18.3]} 29. Rce1 {[%clk
0:00:19]} 29... Nf6 {[%clk 0:00:16.2]} 30. Rxe7 {[%clk 0:00:18.7]} 30... Rxe7
{[%clk 0:00:16.1]} 31. Re1 {[%clk 0:00:19.2]} 31... Rxe1+ {[%clk 0:00:15.6]} 32.
Qxe1 {[%clk 0:00:19.5]} 32... h5 {[%clk 0:00:15.1]} 33. Qe5 {[%clk 0:00:19.3]}
33... fxg3 {[%clk 0:00:13.5]} 34. Qxb8+ {[%clk 0:00:18.1]} 1-0

[Event "*** Titled Tuesday Blitz"]
[Site "Chess.com"]
[Date "2021.04.27"]
[Round "1"]
[White "Nafania1"]
[Black "BrandonJacobson"]
[Result "1/2-1/2"]
[WhiteElo "2480"]
[BlackElo "2942"]
[TimeControl "180+1"]
[EndTime "10:06:58 PDT"]
[Termination "Game drawn by agreement"]

1. e4 {[%clk 0:03:00.9]} 1... c5 {[%clk 0:02:59.7]} 2. Nf3 {[%clk 0:03:00.4]}
2... Nc6 {[%clk 0:03:00]} 3. Bb5 {[%clk 0:02:59.7]} 3... e6 {[%clk 0:02:59.7]}
4. O-O {[%clk 0:02:56.9]} 4... Nge7 {[%clk 0:02:55.9]} 5. d4 {[%clk 0:02:55.3]}
5... cxd4 {[%clk 0:02:56.4]} 6. Nxd4 {[%clk 0:02:55.4]} 6... Ng6 {[%clk
0:02:57.1]} 7. Be3 {[%clk 0:02:48.8]} 7... Be7 {[%clk 0:02:57.7]} 8. Be2 {[%clk
0:02:47.1]} 8... O-O {[%clk 0:02:57.9]} 9. c4 {[%clk 0:02:47.3]} 9... Nxd4
{[%clk 0:02:58.3]} 10. Bxd4 {[%clk 0:02:45.3]} 10... b6 {[%clk 0:02:55.8]} 11.
Nc3 {[%clk 0:02:43.2]} 11... Bb7 {[%clk 0:02:56.3]} 12. f4 {[%clk 0:02:36.8]}
12... d6 {[%clk 0:02:45]} 13. Be3 {[%clk 0:02:27.7]} 13... Bf6 {[%clk
0:02:43.3]} 14. Bd3 {[%clk 0:01:58.2]} 14... Rc8 {[%clk 0:02:07.5]} 15. Rc1
{[%clk 0:01:57.4]} 15... a6 {[%clk 0:02:03.8]} 16. Qd2 {[%clk 0:01:48.6]} 16...
Qc7 {[%clk 0:01:54.9]} 17. Qf2 {[%clk 0:01:42.9]} 17... Qb8 {[%clk 0:01:49.2]}
18. Bxb6 {[%clk 0:01:33.5]} 18... Bh4 {[%clk 0:01:49.5]} 19. g3 {[%clk
0:01:32.7]} 19... Bf6 {[%clk 0:01:40.8]} 20. Bd4 {[%clk 0:01:25.6]} 20... e5
{[%clk 0:01:37.7]} 21. Ba7 {[%clk 0:01:21]} 21... Qa8 {[%clk 0:01:32.8]} 22. f5
{[%clk 0:01:21.4]} 22... Ne7 {[%clk 0:01:32.7]} 23. Nd5 {[%clk 0:01:20.7]} 23...
Nxd5 {[%clk 0:01:24]} 24. cxd5 {[%clk 0:01:20.5]} 24... Bg5 {[%clk 0:01:24.5]}
25. Be3 {[%clk 0:01:18.3]} 25... Bxe3 {[%clk 0:01:20]} 26. Qxe3 {[%clk
0:01:18.5]} 26... f6 {[%clk 0:01:19.1]} 27. Rxc8 {[%clk 0:01:13.8]} 27... Bxc8
{[%clk 0:01:17.9]} 28. Rc1 {[%clk 0:01:13.9]} 28... Qb7 {[%clk 0:01:17.6]} 29.
b3 {[%clk 0:01:13.1]} 29... Qb4 {[%clk 0:01:16.1]} 30. Rc4 {[%clk 0:01:11.1]}
30... Qa3 {[%clk 0:01:13.8]} 31. Qd2 {[%clk 0:00:57.7]} 31... Bd7 {[%clk
0:01:11.1]} 32. Rc7 {[%clk 0:00:55.1]} 32... Bb5 {[%clk 0:01:05.5]} 33. Bxb5
{[%clk 0:00:37.9]} 33... axb5 {[%clk 0:01:06.4]} 34. Rc6 {[%clk 0:00:38.1]}
34... h6 {[%clk 0:01:01.2]} 35. Rc2 {[%clk 0:00:32.4]} 35... Ra8 {[%clk
0:00:53.1]} 36. Kg2 {[%clk 0:00:32.3]} 36... Kh7 {[%clk 0:00:51.1]} 37. g4
{[%clk 0:00:32.4]} 1/2-1/2

[Event "*** Titled Tuesday Blitz"]
[Site "Chess.com"]
[Date "2021.04.27"]
[Round "1"]
[White "KuzubovYuriy"]
[Black "Mikhal867"]
[Result "1-0"]
[WhiteElo "2865"]
[BlackElo "2440"]
[TimeControl "180+1"]
[EndTime "10:06:58 PDT"]
[Termination "KuzubovYuriy won by resignation"]

1. d4 {[%clk 0:03:00.9]} 1... g6 {[%clk 0:02:53.2]} 2. e4 {[%clk 0:03:00.4]}
2... Bg7 {[%clk 0:02:52]} 3. Nf3 {[%clk 0:03:00.5]} 3... d6 {[%clk 0:02:49.7]}
4. Bd3 {[%clk 0:02:59.3]} 4... a6 {[%clk 0:02:48.1]} 5. a4 {[%clk 0:02:58.1]}
5... b6 {[%clk 0:02:47.1]} 6. O-O {[%clk 0:02:47]} 6... Bb7 {[%clk 0:02:48]} 7.
Re1 {[%clk 0:02:45]} 7... c5 {[%clk 0:02:48.2]} 8. d5 {[%clk 0:02:42.4]} 8...
Nd7 {[%clk 0:02:46.4]} 9. c4 {[%clk 0:02:40.5]} 9... Ngf6 {[%clk 0:02:43.6]} 10.
h3 {[%clk 0:02:38.9]} 10... O-O {[%clk 0:02:43.2]} 11. Nc3 {[%clk 0:02:37.9]}
11... h6 {[%clk 0:02:37.2]} 12. Bf4 {[%clk 0:02:33.6]} 12... Nh5 {[%clk
0:02:32.5]} 13. Bh2 {[%clk 0:02:29.5]} 13... Kh7 {[%clk 0:02:30.6]} 14. Qc2
{[%clk 0:02:22.9]} 14... Ne5 {[%clk 0:02:30.1]} 15. Nxe5 {[%clk 0:02:20.9]}
15... Bxe5 {[%clk 0:02:29.4]} 16. Bxe5 {[%clk 0:02:20.8]} 16... dxe5 {[%clk
0:02:28.7]} 17. a5 {[%clk 0:02:21.5]} 17... Rb8 {[%clk 0:02:20.5]} 18. Na4
{[%clk 0:02:14.3]} 18... bxa5 {[%clk 0:02:07.9]} 19. Nxc5 {[%clk 0:02:14.3]}
19... Qc7 {[%clk 0:02:05.3]} 20. Nxb7 {[%clk 0:02:13.1]} 20... Rxb7 {[%clk
0:02:04.3]} 21. c5 {[%clk 0:02:11.3]} 21... Rfb8 {[%clk 0:02:02.7]} 22. Ra2
{[%clk 0:02:07.6]} 22... Nf4 {[%clk 0:01:58.9]} 23. Bxa6 {[%clk 0:02:05.2]}
23... Rb4 {[%clk 0:01:57.4]} 24. Bf1 {[%clk 0:02:02.3]} 24... g5 {[%clk
0:01:44.4]} 25. Rd1 {[%clk 0:01:53.2]} 25... Kg7 {[%clk 0:01:37.9]} 26. Qc3
{[%clk 0:01:48.2]} 26... f6 {[%clk 0:01:34.9]} 27. g3 {[%clk 0:01:46.2]} 27...
Ng6 {[%clk 0:01:30.6]} 28. d6 {[%clk 0:01:44.1]} 28... exd6 {[%clk 0:01:21.4]}
29. Rxd6 {[%clk 0:01:44.5]} 29... Rxe4 {[%clk 0:01:10.5]} 30. Qxa5 {[%clk
0:01:43.5]} 30... Qxa5 {[%clk 0:01:09]} 31. Rxa5 {[%clk 0:01:44.4]} 31... Rxb2
{[%clk 0:01:08.2]} 32. Ra7+ {[%clk 0:01:43.9]} 32... Kg8 {[%clk 0:00:59.2]} 33.
Rd8+ {[%clk 0:01:41.6]} 33... Nf8 {[%clk 0:00:59.1]} 34. Raa8 {[%clk 0:01:40.4]}
34... Rb1 {[%clk 0:00:57.7]} 35. Rxf8+ {[%clk 0:01:40]} 35... Kg7 {[%clk
0:00:57.3]} 36. Rfb8 {[%clk 0:01:37.9]} 36... Rxb8 {[%clk 0:00:53.3]} 37. Rxb8
{[%clk 0:01:37.9]} 37... Re1 {[%clk 0:00:52.7]} 38. Kg2 {[%clk 0:01:36.5]} 38...
Rc1 {[%clk 0:00:52.4]} 39. Rc8 {[%clk 0:01:35.4]} 39... Kf7 {[%clk 0:00:49.2]}
40. Bd3 {[%clk 0:01:34.7]} 40... Ke7 {[%clk 0:00:47]} 41. Bf5 {[%clk 0:01:34.2]}
41... h5 {[%clk 0:00:44.4]} 42. g4 {[%clk 0:01:34.3]} 42... hxg4 {[%clk
0:00:44.2]} 43. hxg4 {[%clk 0:01:35.2]} 43... Rc4 {[%clk 0:00:43.2]} 44. Kf3
{[%clk 0:01:34.3]} 44... Rf4+ {[%clk 0:00:42.3]} 45. Ke3 {[%clk 0:01:34.4]}
45... Rc4 {[%clk 0:00:42.1]} 46. Rc7+ {[%clk 0:01:34.1]} 46... Kd8 {[%clk
0:00:41.8]} 47. Rd7+ {[%clk 0:01:33.3]} 47... Ke8 {[%clk 0:00:41.5]} 48. Rd5
{[%clk 0:01:33.3]} 48... Ke7 {[%clk 0:00:40.4]} 49. Bd7 {[%clk 0:01:31.2]} 49...
Rc3+ {[%clk 0:00:36.9]} 50. Ke4 {[%clk 0:01:30.7]} 50... Rc4+ {[%clk 0:00:34.8]}
51. Kf5 {[%clk 0:01:29.4]} 51... Rf4+ {[%clk 0:00:34.5]} 52. Kg6 {[%clk
0:01:29.4]} 52... Rxf2 {[%clk 0:00:34.5]} 53. c6 {[%clk 0:01:29]} 53... Rc2
{[%clk 0:00:34]} 54. Rd1 {[%clk 0:01:28.6]} 54... Rc4 {[%clk 0:00:31.6]} 55. Rh1
{[%clk 0:01:28.4]} 55... e4 {[%clk 0:00:27.8]} 56. Re1 {[%clk 0:01:28.4]} 56...
Rd4 {[%clk 0:00:21.2]} 57. Bf5 {[%clk 0:01:24.6]} 57... Kd6 {[%clk 0:00:20.5]}
58. Rxe4 {[%clk 0:01:24.5]} 58... Rd1 {[%clk 0:00:14.7]} 59. Re6+ {[%clk
0:01:24.2]} 59... Kc7 {[%clk 0:00:14.1]} 60. Rxf6 {[%clk 0:01:24.8]} 1-0

[Event "*** Titled Tuesday Blitz"]
[Site "Chess.com"]
[Date "2021.04.27"]
[Round "1"]
[White "BvsN"]
[Black "sokidze"]
[Result "0-1"]
[WhiteElo "2376"]
[BlackElo "2711"]
[TimeControl "180+1"]
[EndTime "10:07:00 PDT"]
[Termination "sokidze won by resignation"]

1. c4 {[%clk 0:03:00.9]} 1... c5 {[%clk 0:03:00.2]} 2. Nf3 {[%clk 0:02:59.5]}
2... Nc6 {[%clk 0:03:00.6]} 3. e3 {[%clk 0:02:59.2]} 3... Nf6 {[%clk 0:02:57.3]}
4. Nc3 {[%clk 0:02:58.8]} 4... e5 {[%clk 0:02:57.2]} 5. d4 {[%clk 0:02:58.4]}
5... e4 {[%clk 0:02:57.5]} 6. d5 {[%clk 0:02:56.7]} 6... exf3 {[%clk 0:02:53.2]}
7. dxc6 {[%clk 0:02:57]} 7... dxc6 {[%clk 0:02:54.1]} 8. Qxd8+ {[%clk
0:02:56.5]} 8... Kxd8 {[%clk 0:02:54.5]} 9. gxf3 {[%clk 0:02:56.8]} 9... Kc7
{[%clk 0:02:55.1]} 10. Be2 {[%clk 0:02:51.9]} 10... Be6 {[%clk 0:02:30.3]} 11.
b3 {[%clk 0:02:50.7]} 11... Be7 {[%clk 0:02:29]} 12. Bb2 {[%clk 0:02:50.7]}
12... Rhd8 {[%clk 0:02:27.3]} 13. Ne4 {[%clk 0:02:42.6]} 13... Nxe4 {[%clk
0:02:18.4]} 14. fxe4 {[%clk 0:02:42.8]} 14... g6 {[%clk 0:02:08.5]} 15. Rd1
{[%clk 0:02:39]} 15... a5 {[%clk 0:01:48.7]} 16. Be5+ {[%clk 0:02:34.9]} 16...
Kb6 {[%clk 0:01:47.1]} 17. a4 {[%clk 0:02:26.1]} 17... f5 {[%clk 0:01:32.1]} 18.
exf5 {[%clk 0:02:20.4]} 18... Bxf5 {[%clk 0:01:33]} 19. Rc1 {[%clk 0:02:07.8]}
19... Bh4 {[%clk 0:01:25.6]} 20. O-O {[%clk 0:02:00.6]} 20... Rd2 {[%clk
0:01:18.1]} 21. Bf3 {[%clk 0:01:51.3]} 21... Bd3 {[%clk 0:01:18]} 22. Rfd1
{[%clk 0:01:31.4]} 22... Bxf2+ {[%clk 0:00:49.2]} 23. Kh1 {[%clk 0:01:31.4]}
23... Rxd1+ {[%clk 0:00:40.8]} 24. Rxd1 {[%clk 0:01:31.4]} 24... Rd8 {[%clk
0:00:37.3]} 25. Bf6 {[%clk 0:01:14.1]} 25... Rd7 {[%clk 0:00:28.8]} 26. Bg5
{[%clk 0:01:07.4]} 26... Be4 {[%clk 0:00:23.5]} 27. Bxe4 {[%clk 0:00:53.9]}
27... Rxd1+ {[%clk 0:00:23.7]} 28. Kg2 {[%clk 0:00:54.8]} 28... Rg1+ {[%clk
0:00:24.6]} 29. Kxf2 {[%clk 0:00:55.3]} 29... Rxg5 {[%clk 0:00:25.5]} 30. h4
{[%clk 0:00:55.4]} 30... Re5 {[%clk 0:00:24.6]} 31. Kf3 {[%clk 0:00:55.8]} 31...
Kc7 {[%clk 0:00:25]} 32. Kf4 {[%clk 0:00:55.6]} 32... Kd6 {[%clk 0:00:25.5]} 33.
Bf3 {[%clk 0:00:54.3]} 33... Ke6 {[%clk 0:00:24.8]} 34. Bg4+ {[%clk 0:00:54.5]}
34... Kf6 {[%clk 0:00:25.2]} 35. e4 {[%clk 0:00:55.1]} 35... h5 {[%clk
0:00:15.8]} 36. Bc8 {[%clk 0:00:55]} 36... b6 {[%clk 0:00:14.1]} 37. Bd7 {[%clk
0:00:52.7]} 37... g5+ {[%clk 0:00:11.4]} 38. hxg5+ {[%clk 0:00:52.3]} 38... Rxg5
{[%clk 0:00:12.3]} 39. Bxc6 {[%clk 0:00:47]} 39... h4 {[%clk 0:00:11.7]} 40. Bd7
{[%clk 0:00:47.2]} 40... Rg3 {[%clk 0:00:11.7]} 41. e5+ {[%clk 0:00:47.5]} 41...
Ke7 {[%clk 0:00:12]} 42. Bf5 {[%clk 0:00:46]} 42... Rxb3 {[%clk 0:00:12]} 43.
Kg4 {[%clk 0:00:36.1]} 43... Rb4 {[%clk 0:00:12.2]} 44. Kxh4 {[%clk 0:00:37]}
44... Rxc4+ {[%clk 0:00:12.6]} 45. Kg5 {[%clk 0:00:37]} 45... Rxa4 {[%clk
0:00:13.5]} 0-1

[Event "*** Titled Tuesday Blitz"]
[Site "Chess.com"]
[Date "2021.04.27"]
[Round "1"]
[White "dragos420"]
[Black "secretsuperstar7"]
[Result "1-0"]
[WhiteElo "2562"]
[BlackElo "2231"]
[TimeControl "180+1"]
[EndTime "10:07:02 PDT"]
[Termination "dragos420 won on time"]

1. e4 {[%clk 0:03:00.7]} 1... c5 {[%clk 0:02:59.6]} 2. Nf3 {[%clk 0:03:01]} 2...
d6 {[%clk 0:02:58.3]} 3. d4 {[%clk 0:03:01.1]} 3... cxd4 {[%clk 0:02:58.2]} 4.
Nxd4 {[%clk 0:03:02]} 4... Nf6 {[%clk 0:02:57]} 5. Nc3 {[%clk 0:03:02.5]} 5...
a6 {[%clk 0:02:56.3]} 6. Be3 {[%clk 0:03:02.5]} 6... Nc6 {[%clk 0:02:54.7]} 7.
f3 {[%clk 0:03:00.9]} 7... e6 {[%clk 0:02:50.7]} 8. Qd2 {[%clk 0:03:00.9]} 8...
Be7 {[%clk 0:02:48.9]} 9. g4 {[%clk 0:03:00.3]} 9... Qc7 {[%clk 0:02:36.9]} 10.
O-O-O {[%clk 0:02:56.7]} 10... b5 {[%clk 0:01:59.8]} 11. Qf2 {[%clk 0:02:41.4]}
11... Ne5 {[%clk 0:01:28.5]} 12. g5 {[%clk 0:02:38.5]} 12... Nfd7 {[%clk
0:01:27.8]} 13. h4 {[%clk 0:02:33.5]} 13... Bb7 {[%clk 0:01:10.1]} 14. Kb1
{[%clk 0:02:15.9]} 14... Nc4 {[%clk 0:01:04.1]} 15. Bc1 {[%clk 0:02:04.5]} 15...
Rc8 {[%clk 0:00:53.3]} 16. Bd3 {[%clk 0:01:58.5]} 16... Nc5 {[%clk 0:00:41.5]}
17. Ndxb5 {[%clk 0:01:27.9]} 17... axb5 {[%clk 0:00:22.2]} 18. Nxb5 {[%clk
0:01:28.8]} 18... Qb6 {[%clk 0:00:19.9]} 19. Bxc4 {[%clk 0:01:28.7]} 19... Ba6
{[%clk 0:00:20.1]} 20. Na3 {[%clk 0:01:21.5]} 20... Rb8 {[%clk 0:00:15.7]} 21.
b3 {[%clk 0:01:13.5]} 21... Qa5 {[%clk 0:00:11]} 22. Bb2 {[%clk 0:01:09.2]}
22... Ra8 {[%clk 0:00:07.5]} 23. Qd2 {[%clk 0:01:00.4]} 23... Qb6 {[%clk
0:00:04.3]} 24. Bxa6 {[%clk 0:00:57.3]} 24... Qxa6 {[%clk 0:00:03.5]} 25. Rhe1
{[%clk 0:00:47.7]} 25... O-O {[%clk 0:00:02]} 26. f4 {[%clk 0:00:47.8]} 26...
Rfd8 {[%clk 0:00:02.1]} 27. f5 {[%clk 0:00:47.3]} 27... d5 {[%clk 0:00:01.9]}
28. exd5 {[%clk 0:00:43.3]} 28... Rxd5 {[%clk 0:00:01.4]} 29. Qxd5 {[%clk
0:00:36.7]} 29... exd5 {[%clk 0:00:01.7]} 30. Rxe7 {[%clk 0:00:37.6]} 30... Ne4
{[%clk 0:00:01.6]} 31. Re5 {[%clk 0:00:31.3]} 31... Nc3+ {[%clk 0:00:02.1]} 32.
Bxc3 {[%clk 0:00:25.6]} 32... Qxa3 {[%clk 0:00:02.3]} 33. Rexd5 {[%clk
0:00:25.7]} 33... Qxa2+ {[%clk 0:00:02.5]} 34. Kc1 {[%clk 0:00:26]} 34... Qa3+
{[%clk 0:00:02.8]} 35. Bb2 {[%clk 0:00:25]} 1-0